fUST/lending_fUST_20250830
["ID","MTS","AMOUNT","RATE_DAILY","PERIOD"]
[382178394,1756533722486,300.0,0.00023832,2]
[382178395,1756533745550,235.967568,0.00023832,2]
[382178396,1756533745578,264.032432,0.00023832,2]
[382178397,1756533745609,500.0,0.00023832,2]
[382178398,1756533745640,500.0,0.00023832,2]
[382178399,1756533745671,500.0,0.00023832,2]
[382178400,1756533745702,500.0,0.00023832,2]
[382178401,1756533745733,500.0,0.00023832,2]
[382178402,1756533745763,500.0,0.00023832,2]
[382178403,1756533745791,508.85484378,0.00023832,2]
[382178404,1756533745822,500.0,0.00023832,2]
[382178405,1756533745855,500.0,0.00023832,2]
[382178406,1756533745884,500.0,0.00023832,2]
[382178407,1756533745916,500.0,0.00023832,2]
[382178408,1756533745956,500.0,0.00023832,2]
[382178409,1756533745984,358.28297768,0.00023832,2]
[382178410,1756533784161,300.0,0.00023832,2]
[382178411,1756533784796,213.228602,0.000199,2]
[382178412,1756533797883,168.8473811,0.00023254,2]
[382178413,1756533804120,2111.72892512,0.00023799,2]
[382178414,1756533843209,300.0,0.00023832,2]
[382178415,1756533873182,275.03483832,0.00023832,2]
[382178416,1756533873212,224.96516168,0.00023832,2]
[382178417,1756533873245,371.37156054,0.00023832,2]
[382178418,1756533873287,461.5717589,0.00023832,2]
[382178419,1756533902339,300.0,0.00023832,2]
[382178420,1756533902461,300.0,0.00023832,2]
[382178421,1756533902722,287.0,0.00023832,2]
[382178422,1756533903181,1104.0,0.00023832,2]
[382178423,1756533926061,168.0,0.00023787,2]
[382178424,1756533952168,461.9533806,0.000199,2]
[382178425,1756533952287,461.95338056,0.00021389,2]
[382178426,1756533952368,461.95338056,0.00022879,2]
[382178427,1756533954343,1076.39127181,0.00023799,2]
[382178428,1756533963961,300.0,0.00023832,2]
[382178430,1756533975802,694.7222199,0.00023832,2]
[382178431,1756534022703,300.0,0.00023832,2]
[382178432,1756534084368,300.0,0.00023832,2]
[382178435,1756534103417,1002.08444901,0.00023832,2]
[382178436,1756534126942,415.75804262,0.000199,2]
[382178437,1756534127019,415.7580425,0.00021389,2]
[382178438,1756534127099,415.7580425,0.00022879,2]
[382178439,1756534143188,300.0,0.00023832,2]
[382178440,1756534146255,176.76930882,0.00023799,2]
[382178441,1756534146289,1860.3350381,0.00023799,2]
[382178442,1756534163529,323.7989615,0.00023407,2]
[382178443,1756534202791,300.0,0.00023832,2]
[382178444,1756534207156,941.84236286,0.00023799,2]
[382178457,1756534231991,-429.06873695,0.00023833,2]
[382178464,1756534232049,-1501.0,0.00023833,2]
[382178527,1756534232673,694.7222199,0.00023833,2]
[382178587,1756534238455,-5838.02956148,0.00023833,2]
[382178588,1756534238467,-268.61921822,0.00023833,2]
[382178589,1756534238512,-216328.07860499,0.00023833,2]
[382178590,1756534238522,-388.58552915,0.00023899,2]
[382178592,1756534238532,-43223.16,0.000239,7]
[382178593,1756534238543,-6343.04,0.000239,7]
[382178595,1756534238553,-216.25802849,0.000239,7]
[382178597,1756534238564,-417.15472785,0.000239,7]
[382178599,1756534238582,-168.0,0.00023916,2]
[382178601,1756534238592,-960.0,0.00023932,15]
[382178603,1756534238603,-229.81466995,0.00023932,2]
[382178605,1756534238613,-168.0,0.00023944,2]
[382178607,1756534238623,-160.0,0.00024,7]
[382178609,1756534238633,-160.0,0.00024,7]
[382178611,1756534238643,-20355.89753634,0.0002402,2]
[382178613,1756534238654,-228.0,0.0002402,2]
[382178615,1756534238664,-228.0,0.00024125,2]
[382178617,1756534238673,-4434.18416276,0.00024209,2]
[382178619,1756534238683,-168.0,0.00024272,2]
[382178621,1756534238695,-228.0,0.00024272,2]
[382178623,1756534238706,-300.0,0.00024309,20]
[382178625,1756534238716,-300.0,0.00024309,20]
[382178627,1756534238726,-300.0,0.00024309,20]
[382178629,1756534238735,-300.0,0.00024309,20]
[382178631,1756534238745,-300.0,0.00024309,20]
[382178633,1756534238754,-300.0,0.00024309,20]
[382178635,1756534238763,-300.0,0.00024309,20]
[382178637,1756534238773,-300.0,0.00024309,20]
[382178639,1756534238783,-300.0,0.00024309,20]
[382178641,1756534238792,-415.7580425,0.00024368,2]
[382178643,1756534238801,-228.0,0.00024412,2]
[382178645,1756534238810,-500.0,0.00024529,2]
[382178647,1756534238819,-500.58297378,0.00024529,2]
[382178649,1756534238829,-509.07670686,0.00024529,2]
[382178651,1756534238839,-500.0,0.00024529,2]
[382178653,1756534238848,-500.0,0.00024633,2]
[382178655,1756534238857,-535.82999307,0.00024633,2]
[382178657,1756534238866,-500.0,0.00024633,2]
[382178659,1756534238875,-501.74279141,0.00024633,2]
[382178661,1756534238884,-500.0,0.00024633,2]
[382178663,1756534238893,-506.84425262,0.00024633,2]
[382178665,1756534238903,-500.0,0.00024633,2]
[382178667,1756534238912,-501.21865721,0.00024633,2]
[382178669,1756534238922,-500.0,0.00024633,2]
[382178671,1756534238931,-500.0,0.00024633,2]
[382178673,1756534238940,-503.92401456,0.00024633,2]
[382178675,1756534238949,-501.60924757,0.00024633,2]
[382178677,1756534238958,-160.0,0.00024656,2]
[382178679,1756534238968,-425.65682239,0.00024656,2]
[382178681,1756534238976,-232.73020027,0.00024656,2]
[382178683,1756534238986,-11361.55901651,0.00024658,2]
[382178685,1756534238995,-845.75060209,0.00024661,2]
[382178687,1756534239005,-217.34977173,0.00024661,2]
[382178689,1756534239014,-160.0,0.00024661,2]
[382178691,1756534239023,-368.63420395,0.00024719,2]
[382178693,1756534239033,-201.92889551,0.00024719,2]
[382178695,1756534239042,-228.0,0.00024759,2]
[382178697,1756534239051,-327.42,0.000248,2]
[382178699,1756534239061,-941.84236282,0.00024831,2]
[382178701,1756534239070,-168.0,0.00024884,2]
[382178703,1756534239080,-168.0,0.00024898,2]
[382178705,1756534239089,-2670.8343105,0.000249,2]
[382178707,1756534239098,-500.0,0.00025,2]
[382178709,1756534239107,-500.0,0.00025,2]
[382178711,1756534239116,-355.85596122,0.00025077,2]
[382178713,1756534239125,-228.0,0.00025146,2]
[382178715,1756534239134,-168.0,0.00025164,2]
[382178717,1756534239144,-500.0,0.00025181,2]
[382178719,1756534239153,-356.751259,0.00025181,2]
[382178721,1756534239163,-1000.0,0.00025181,2]
[382178723,1756534239172,-549.61782895,0.00025181,2]
[382178725,1756534239181,-228.0,0.00025221,2]
[382178727,1756534239190,-500.0,0.00025231,2]
[382178729,1756534239199,-228.0,0.00025231,2]
[382178731,1756534239212,-168.0,0.00025233,2]
[382178733,1756534239222,-500.0,0.00025367,2]
[382178735,1756534239231,-500.0,0.00025367,2]
[382178758,1756534239432,-510.68393738,0.00025367,2]
[382178760,1756534239447,-228.0,0.00025388,2]
[382178762,1756534239457,-228.0,0.0002539,2]
[382178764,1756534239467,-168.0,0.00025392,2]
[382178766,1756534239477,-228.0,0.0002549,2]
[382178768,1756534239486,-336.23610955,0.00025505,2]
[382178770,1756534239495,-156.811,0.00025506,10]
[382178772,1756534239505,-228.0,0.00025532,2]
[382178774,1756534239514,-228.0,0.00025537,2]
[382178776,1756534239523,-500.0,0.00025548,2]
[382178778,1756534239533,-534.1668621,0.00025591,2]
[382178780,1756534239542,-2037.1043469,0.00025606,2]
[382178782,1756534239552,-168.0,0.00025627,2]
[382178784,1756534239561,-153.0,0.00025691,2]
[382178786,1756534239571,-153.0,0.00025691,2]
[382178788,1756534239580,-153.0,0.00025691,2]
[382178791,1756534239590,-153.0,0.00025691,2]
[382178793,1756534239599,-228.0,0.00025728,2]
[382178795,1756534239609,-1474.53681582,0.00025801,2]
[382178798,1756534239618,-420.0,0.00025849,2]
[382178800,1756534239628,-415.7580425,0.00025857,4]
[382178802,1756534239637,-941.84236282,0.00025864,2]
[382178804,1756534239648,-1000.0,0.00025915,2]
[382178806,1756534239658,-228.0,0.00025955,2]
[382178808,1756534239667,-160.0,0.00025991,3]
[382178810,1756534239677,-409.0,0.00026069,2]
[382178812,1756534239686,-2492.71625395,0.00026085,2]
[382178814,1756534239701,-500.0,0.00026085,2]
[382178816,1756534239710,-500.0,0.00026085,2]
[382178818,1756534239719,-500.0,0.00026085,2]
[382178820,1756534239729,-500.0,0.00026085,2]
[382178822,1756534239739,-500.0,0.00026085,2]
[382178824,1756534239748,-500.0,0.00026085,2]
[382178826,1756534239757,-500.0,0.00026085,2]
[382178828,1756534239767,-500.0,0.00026085,2]
[382178830,1756534239778,-500.0,0.00026085,2]
[382178832,1756534239788,-500.0,0.00026085,2]
[382178834,1756534239798,-500.0,0.00026085,2]
[382178836,1756534239807,-500.0,0.00026085,2]
[382178838,1756534239816,-500.0,0.00026085,2]
[382178840,1756534239825,-151.0,0.00026085,2]
[382178842,1756534239835,-500.0,0.00026085,2]
[382178844,1756534239844,-151.0,0.00026085,2]
[382178846,1756534239853,-151.0,0.00026085,2]
[382178848,1756534239863,-151.0,0.00026085,2]
[382178850,1756534239873,-151.0,0.00026085,2]
[382178852,1756534239882,-151.0,0.00026085,2]
[382178854,1756534239891,-151.0,0.00026085,2]
[382178856,1756534239900,-1000.0,0.00026085,2]
[382178858,1756534239910,-151.0,0.00026085,2]
[382178860,1756534239919,-1000.0,0.00026085,2]
[382178862,1756534239928,-151.0,0.00026085,2]
[382178864,1756534239938,-151.0,0.00026085,2]
[382178866,1756534239948,-1000.0,0.00026085,2]
[382178868,1756534239958,-1000.0,0.00026085,2]
[382178870,1756534239968,-151.0,0.00026085,2]
[382178872,1756534239978,-1000.0,0.00026085,2]
[382178874,1756534239987,-153.21929658,0.00026085,2]
[382178876,1756534239997,-151.0,0.00026085,2]
[382178878,1756534240006,-1000.0,0.00026085,2]
[382178880,1756534240016,-151.0,0.00026085,2]
[382178882,1756534240025,-1000.0,0.00026085,2]
[382178884,1756534240034,-151.0,0.00026085,2]
[382178886,1756534240044,-752.19282963,0.00026085,2]
[382178888,1756534240054,-151.0,0.00026085,2]
[382178890,1756534240063,-151.0,0.00026085,2]
[382178892,1756534240072,-151.0,0.00026085,2]
[382178894,1756534240083,-151.0,0.00026085,2]
[382178896,1756534240092,-342.73267993,0.00026355,2]
[382178898,1756534240102,-1369.55978899,0.00026355,2]
[382178900,1756534240111,-806.48707584,0.00026355,2]
[382178902,1756534240121,-3222.72235507,0.00026355,2]
[382178904,1756534240130,-160.0,0.00026499,4]
[382178906,1756534240140,-160.0,0.00026514,2]
[382178908,1756534240150,-203.544811,0.00026676,2]
[382178910,1756534240160,-3314.39012775,0.00026882,2]
[382178912,1756534240170,-806.90786645,0.00026882,2]
[382178914,1756534240179,-941.84236282,0.00026896,2]
[382178916,1756534240188,-160.0,0.00027007,5]
[382178918,1756534240199,-267.8177275,0.00027062,2]
[382178920,1756534240209,-534.1668621,0.0002719,2]
[382178922,1756534240219,-6343.04,0.000272,7]
[382178924,1756534240230,-216.25802849,0.000272,7]
[382178926,1756534240239,-415.7580425,0.00027346,7]
[382178928,1756534240248,-5385.95,0.000274,7]
[382178930,1756534240259,-2037.1043469,0.00027412,2]
[382178932,1756534240269,-160.0,0.00027515,6]
[382178934,1756534240280,-4434.18416276,0.00027609,2]
[382178936,1756534240289,-1300.0,0.00027826,7]
[382178938,1756534240299,-941.84236282,0.00027928,2]
[382178940,1756534240309,-160.0,0.00028024,7]
[382178942,1756534240318,-587.0,0.00028037,2]
[382178944,1756534240328,-156.21,0.00028353,15]
[382178946,1756534240337,-156.21,0.00028453,15]
[382178948,1756534240346,-160.0,0.00028532,8]
[382178950,1756534240356,-156.21,0.00028553,15]
[382178952,1756534240365,-1300.0,0.00028648,7]
[382178954,1756534240374,-156.21,0.00028653,15]
[382178956,1756534240385,-5383.7698338,0.00028725,2]
[382178958,1756534240394,-156.21,0.00028753,15]
[382178960,1756534240403,-152.13807225,0.00028783,2]
[382178962,1756534240413,-151.0,0.00028783,2]
[382178964,1756534240422,-152.65524359,0.00028783,2]
[382178966,1756534240432,-152.02166784,0.00028783,2]
[382178968,1756534240441,-151.0,0.00028783,2]
[382178970,1756534240450,-151.48684361,0.00028783,2]
[382178972,1756534240463,-241.85192776,0.00028783,2]
[382178974,1756534240476,-151.37198271,0.00028783,2]
[382178976,1756534240485,-151.77123579,0.00028783,2]
[382178978,1756534240494,-154.25006985,0.00028783,2]
[382178980,1756534240504,-151.0,0.00028783,2]
[382178982,1756534240514,-154.06718767,0.00028783,2]
[382178984,1756534240523,-151.0,0.00028783,2]
[382178986,1756534240532,-152.22796554,0.00028783,2]
[382178988,1756534240542,-157.30439683,0.00028783,2]
[382178990,1756534240552,-415.7580425,0.00028836,10]
[382178992,1756534240562,-156.21,0.00028853,15]
[382178994,1756534240571,-156.21113127,0.00028953,15]
[382178996,1756534240581,-941.84236282,0.0002896,2]
[382178998,1756534240590,-160.0,0.0002904,9]
[382179000,1756534240599,-151.0,0.00029057,2]
[382179002,1756534240609,-151.0,0.00029057,2]
[382179004,1756534240619,-151.0,0.00029057,2]
[382179006,1756534240628,-179.74479563,0.00029057,2]
[382179008,1756534240638,-284.624,0.00029069,2]
[382179010,1756534240647,-151.0,0.000292,14]
[382179012,1756534240657,-2037.1043469,0.00029219,2]
[382179014,1756534240666,-151.0,0.00029331,2]
[382179016,1756534240675,-1300.0,0.0002947,7]
[382179018,1756534240685,-160.0,0.00029548,10]
[382179020,1756534240698,-724.90404,0.00029589,120]
[382179022,1756534240708,-151.0,0.00029605,2]
[382179024,1756534240718,-250.0,0.00029722,2]
[382179026,1756534240728,-151.0,0.00029879,2]
[382179028,1756534240738,-941.84236282,0.00029993,2]
[382179030,1756534240748,-1503.393798,0.0003,2]
[382179032,1756534240758,-160.0,0.00030056,11]
[382179035,1756534240770,-534.1668621,0.00030126,2]
[382179037,1756534240780,-502.71065328,0.0003013,5]
[382179039,1756534240789,-500.0,0.0003013,5]
[382179041,1756534240799,-2000.0,0.00030136,30]
[382179043,1756534240808,-2000.0,0.00030136,30]
[382179044,1756534240818,-2000.0,0.00030136,30]
[382179047,1756534240828,-2000.0,0.00030136,30]
[382179049,1756534240837,-2000.0,0.00030136,30]
[382179051,1756534240848,-2000.0,0.00030136,30]
[382179052,1756534240857,-2000.0,0.00030136,30]
[382179054,1756534240867,-2000.0,0.00030136,30]
[382179057,1756534240877,-2000.0,0.00030136,30]
[382179058,1756534240886,-2000.0,0.00030136,30]
[382179060,1756534240896,-2000.0,0.00030136,30]
[382179063,1756534240906,-2000.0,0.00030136,30]
[382179064,1756534240915,-2000.0,0.00030136,30]
[382179066,1756534240924,-2000.0,0.00030136,30]
[382179068,1756534240933,-2000.0,0.00030136,30]
[382179070,1756534240942,-2000.0,0.00030136,30]
[382179072,1756534240951,-2000.0,0.00030136,30]
[382179074,1756534240961,-2000.0,0.00030136,30]
[382179076,1756534240970,-2061.57681629,0.00030136,30]
[382179078,1756534240980,-245.0,0.00030153,2]
[382179080,1756534240989,-160.0,0.000302,30]
[382179083,1756534241000,-216.25802849,0.000302,30]
[382179084,1756534241010,-1300.0,0.00030292,7]
[382179087,1756534241020,-415.7580425,0.00030325,13]
[382179088,1756534241031,-823.0,0.00030409,2]
[382179090,1756534241043,-5385.95,0.000305,7]
[382179093,1756534241054,-160.0,0.00030564,12]
[382179094,1756534241064,-534.1668621,0.0003059,2]
[382179096,1756534241075,-6343.04,0.000306,7]
[382179099,1756534241086,-26893.6846176,0.00030969,2]
[382179100,1756534241096,-4434.18416276,0.00031009,2]
[382179102,1756534241105,-1000.0,0.00031014,2]
[382179104,1756534241114,-7462.49117589,0.00031025,2]
[382179106,1756534241124,-2037.1043469,0.00031025,2]
[382179108,1756534241133,-160.0,0.00031072,13]
[382179110,1756534241142,-170.84409111,0.00031072,5]
[382179112,1756534241152,-500.0,0.00031073,5]
[382179114,1756534241162,-500.0,0.00031073,5]
[382179116,1756534241171,-500.0,0.00031073,5]
[382179118,1756534241180,-500.0,0.00031073,5]
[382179120,1756534241190,-500.0,0.00031073,5]
[382179122,1756534241199,-500.0,0.00031073,5]
[382179125,1756534241208,-501.31195499,0.00031073,5]
[382179126,1756534241223,-534.1668621,0.00031099,2]
[382179128,1756534241237,-151.0,0.00031105,7]
[382179131,1756534241252,-151.0,0.00031105,7]
[382179133,1756534241261,-151.0,0.00031105,7]
[382179135,1756534241272,-151.0,0.00031105,7]
[382179137,1756534241283,-151.0,0.00031109,7]
[382179139,1756534241293,-151.0,0.00031109,7]
[382179141,1756534241304,-151.0,0.00031109,7]
[382179143,1756534241314,-151.0,0.00031109,7]
[382179145,1756534241324,-151.0,0.00031109,7]
[382179147,1756534241334,-169.254544,0.00031109,7]
[382179149,1756534241344,-151.0,0.00031109,7]
[382179151,1756534241353,-153.535477,0.00031109,7]
[382179153,1756534241362,-1637.0,0.00031113,60]
[382179155,1756534241372,-1300.0,0.00031114,7]
[382179157,1756534241381,-151.0,0.00031125,7]
[382179159,1756534241390,-151.0,0.00031125,7]
[382179161,1756534241399,-151.0,0.00031125,7]
[382179163,1756534241408,-624.06181762,0.00031125,2]
[382179165,1756534241418,-357562.89020007,0.00031125,20]
[382179200,1756534241735,-3789.21608382,0.00031125,20]
[382179252,1756534242220,-694.7222199,0.00023899,2]
[382179254,1756534242229,-151.0,0.00026085,2]
[382179256,1756534242239,-151.0,0.00026085,2]
[382179258,1756534242250,-151.0,0.00026085,2]
[382179260,1756534242259,-39816.73553459,0.00031125,20]
[382179335,1756534243163,-151.0,0.00026085,2]
[382179337,1756534243175,-151.0,0.00026085,2]
[382179339,1756534243184,-151.0,0.00026085,2]
[382179341,1756534243194,-151.0,0.00026085,2]
[382179343,1756534243204,-586322.48934494,0.00031125,20]
[382179348,1756534243235,-3063.33539007,0.00031125,20]
[382180122,1756534402878,-304.88923136,0.000199,2]
[382180123,1756534402913,-304.88923116,0.00021389,2]
[382180124,1756534402947,-304.88923116,0.00022879,2]
[382180125,1756534443149,300.0,0.00023732,2]
[382180126,1756534463439,470.21261488,0.00023733,2]
[382180127,1756534471538,388.58552915,0.00023732,2]
[382180129,1756534478870,343.69331534,0.000199,2]
[382180130,1756534478984,343.69331512,0.00021389,2]
[382180131,1756534479245,343.69331512,0.00022879,2]
[382180132,1756534481684,1629.68347752,0.000237,2]
[382180133,1756534482827,183.19033,0.00013699,2]
[382180134,1756534483043,183.19033,0.00020187,2]
[382180135,1756534504715,300.0,0.00023732,2]
[382180136,1756534506946,281.043649,0.00023394,2]
[382180137,1756534562574,300.0,0.00023732,2]
[382180138,1756534564498,-812.32554151,0.00023733,2]
[382180139,1756534564630,-10000.01,0.00023733,2]
[382180140,1756534564691,3103.68873651,0.000237,2]
[382180141,1756534564717,1330.49542625,0.000237,2]
[382180142,1756534564964,-5565.82583724,0.00023733,2]
[382180143,1756534564986,-10000.01,0.00023733,2]
[382180144,1756534565013,-10000.01,0.00023733,2]
[382180145,1756534606553,151.0,0.00027397,120]
[382180146,1756534622435,300.0,0.00023732,2]
[382180147,1756534659186,287.55399844,0.000199,2]
[382180148,1756534659487,287.55399843,0.00021389,2]
[382180149,1756534659585,287.55399843,0.00022879,2]
[382180150,1756534683273,300.0,0.00023732,2]
[382180151,1756534686974,824.11206752,0.000237,2]
[382180152,1756534743273,300.0,0.00023732,2]
[382180153,1756534768925,7413.23593718,0.0002335,2]
[382180154,1756534768949,2586.76406282,0.0002335,2]
[382180157,1756534787942,367.55,0.00023723,10]
[382180158,1756534802442,300.0,0.00023732,2]
[382180159,1756534808498,365.1202258,0.00023338,2]
[382180160,1756534813805,306.29,0.00023723,10]
[382180161,1756534824348,1303.74678204,0.000237,2]
[382180162,1756534827902,255.24,0.00023723,10]
[382180163,1756534830262,268.54767741,0.000199,2]
[382180164,1756534830329,268.54767732,0.00021389,2]
[382180165,1756534830420,268.54767732,0.00022879,2]
[382180166,1756534836285,2956.12277518,0.000237,2]
[382180167,1756534843058,212.7,0.00023723,10]
[382180168,1756534857112,177.25,0.00023723,10]
[382180169,1756534863628,300.0,0.00023732,2]
[382180170,1756534901708,63.58312211,0.00023723,10]
[382180171,1756534901735,822.68687789,0.00023723,10]
[382180172,1756534923158,300.0,0.00023732,2]
[382180173,1756534953658,272.00987041,0.00023732,2]
[382180174,1756534957258,721.09805908,0.000237,2]
[382180175,1756534983060,300.0,0.00023732,2]
[382180176,1756535007416,241.69290982,0.000199,2]
[382180177,1756535007498,241.69290958,0.00021389,2]
[382180178,1756535007569,241.69290958,0.00022879,2]
[382180179,1756535043014,300.0,0.00023732,2]
[382180180,1756535102440,300.0,0.00023732,2]
[382180181,1756535106533,1970.74851678,0.000237,2]
[382180182,1756535163059,300.0,0.00023732,2]
[382180183,1756535167719,1042.99742564,0.000237,2]
[382180184,1756535190978,217.52361868,0.000199,2]
[382180185,1756535191063,217.52361862,0.00021389,2]
[382180186,1756535191155,217.52361862,0.00022879,2]
[382180187,1756535222488,300.0,0.00023732,2]
[382180188,1756535228782,630.96080166,0.000237,2]
[382180191,1756535268513,1361.85886364,0.00018,2]
[382180192,1756535268541,8778.37851436,0.00018,2]
[382180195,1756535283248,300.0,0.00023732,2]
[382180201,1756535300214,921.63148564,0.00015,2]
[382180202,1756535300243,78.76309994,0.00015,2]
[382180203,1756535316358,584.11206976,0.000149,2]
[382180204,1756535316655,1000.0,0.0001,2]
[382180205,1756535317295,8222.07571342,0.00018,2]
[382180247,1756535343806,115.05911688,0.00023732,2]
[382180248,1756535343834,184.94088312,0.00023732,2]
[382180249,1756535376740,1313.83234452,0.000237,2]
[382180250,1756535377616,391.5425135,0.000199,2]
[382180251,1756535377736,391.5425135,0.00022985,2]
[382180284,1756535432381,-470.21261488,0.00023733,2]
[382180333,1756535438365,-333151.60600637,0.00023733,2]
[382180335,1756535438375,-5708.74,0.000238,7]
[382180337,1756535438385,-43223.16,0.000238,7]
[382180339,1756535438395,-152.00856054,0.000238,2]
[382180341,1756535438404,-216.25802849,0.000238,7]
[382180343,1756535438414,-229.81466995,0.00023832,2]
[382180345,1756535438423,-1593.43839552,0.00023832,15]
[382180347,1756535438432,-1001.9277791,0.00024,30]
[382180349,1756535438442,-216.25802849,0.00024,7]
[382180350,1756535438451,-160.0,0.00024,7]
[382180352,1756535438461,-300.0,0.00024207,20]
[382180356,1756535438471,-300.0,0.00024207,20]
[382180359,1756535438480,-300.0,0.00024207,20]
[382180361,1756535438490,-300.0,0.00024207,20]
[382180364,1756535438499,-300.0,0.00024207,20]
[382180365,1756535438508,-300.0,0.00024207,20]
[382180366,1756535438517,-300.0,0.00024207,20]
[382180367,1756535438527,-300.0,0.00024207,20]
[382180369,1756535438536,-300.0,0.00024207,20]
[382180371,1756535438546,-20355.89753634,0.00024207,2]
[382180372,1756535438556,-500.0,0.00024509,2]
[382180374,1756535438566,-201.0,0.00024601,2]
[382180375,1756535438575,-192158.43008292,0.00024648,2]
[382180376,1756535438584,-501.60924757,0.00024673,2]
[382180377,1756535438594,-500.0,0.00024673,2]
[382180378,1756535438603,-201.0,0.00024675,2]
[382180379,1756535438613,-11361.55901651,0.00024675,2]
[382180380,1756535438623,-217.34977173,0.00024678,2]
[382180381,1756535438632,-232.73020027,0.00024678,2]
[382180382,1756535438642,-160.0,0.00024678,2]
[382180383,1756535438651,-845.75060209,0.00024678,2]
[382180384,1756535438661,-160.0,0.00024697,2]
[382180385,1756535438670,-201.0,0.000247,2]
[382180386,1756535438680,-13047.6125094,0.000248,2]
[382180387,1756535438690,-3739.1680347,0.000249,2]
[382180388,1756535438700,-500.0,0.00024973,2]
[382180389,1756535438711,-501.21865721,0.00024973,2]
[382180390,1756535438720,-547.62822904,0.00024973,2]
[382180391,1756535438730,-506.84425262,0.00024973,2]
[382180392,1756535438739,-500.0,0.00024973,2]
[382180393,1756535438748,-500.0,0.00024973,2]
[382180394,1756535438758,-502.77722272,0.00024973,2]
[382180395,1756535438768,-500.0,0.00024973,2]
[382180396,1756535438777,-200.0,0.00024973,2]
[382180397,1756535438786,-509.07670686,0.00024973,2]
[382180398,1756535438796,-501.74279141,0.00024973,2]
[382180399,1756535438806,-500.0,0.00024973,2]
[382180400,1756535438815,-500.0,0.00024973,2]
[382180401,1756535438825,-503.92401456,0.00024973,2]
[382180402,1756535438835,-500.0,0.00024973,2]
[382180403,1756535438844,-5139.9399385,0.00025,7]
[382180404,1756535438853,-45058.68270236,0.00025,14]
[382180405,1756535438862,-201.0,0.0002502,2]
[382180406,1756535438872,-201.0,0.00025029,2]
[382180407,1756535438881,-500.0,0.00025057,2]
[382180408,1756535438891,-1000.0,0.00025057,2]
[382180409,1756535438901,-201.0,0.00025208,2]
[382180410,1756535438911,-549.61782895,0.00025221,2]
[382180411,1756535438920,-201.0,0.00025305,2]
[382180412,1756535438930,-534.1668621,0.00025323,2]
[382180413,1756535438939,-1863.9446442,0.00025323,2]
[382180414,1756535438948,-336.23610955,0.00025331,2]
[382180415,1756535438957,-201.0,0.00025332,2]
[382180416,1756535438969,-201.0,0.00025333,2]
[382180417,1756535438978,-201.0,0.00025396,2]
[382180418,1756535438988,-201.0,0.00025456,2]
[382180419,1756535438997,-500.0,0.00025521,2]
[382180420,1756535439007,-356.751259,0.00025521,2]
[382180421,1756535439016,-500.0,0.00025521,2]
[382180422,1756535439026,-520.39784858,0.00025521,2]
[382180423,1756535439035,-1000.0,0.00025521,2]
[382180424,1756535439044,-1042.9974256,0.00025525,2]
[382180425,1756535439054,-152.22796554,0.00025525,2]
[382180426,1756535439065,-157.30439683,0.00025525,2]
[382180427,1756535439074,-346.742,0.00025528,10]
[382180428,1756535439085,-176.77108969,0.00025528,10]
[382180429,1756535439095,-201.0,0.00025609,2]
[382180430,1756535439104,-402.04830025,0.00025658,2]
[382180431,1756535439114,-201.0,0.00025664,2]